[Event "Late-Titled-Tuesday-Blitz-April-02-2024"]
[Site "Chess.com"]
[Date "2024.04.02"]
[Round "10"]
[White "Itay121"]
[Black "GoltsevDmitry2000"]
[Result "0-1"]
[WhiteElo "2557"]
[BlackElo "2777"]
[TimeControl "180+1"]
[EndTime "15:51:41 PDT"]
[Termination "GoltsevDmitry2000 won by checkmate"]

1. e4 {[%clk 0:03:00.9]} 1... e6 {[%clk 0:02:58.9]} 2. d4 {[%clk 0:02:58.9]}
2... d5 {[%clk 0:02:59.8]} 3. Nd2 {[%clk 0:02:58]} 3... c5 {[%clk 0:02:59.6]} 4.
dxc5 {[%clk 0:02:56.1]} 4... Bxc5 {[%clk 0:02:58.2]} 5. Bd3 {[%clk 0:02:56.3]}
5... Nf6 {[%clk 0:02:57]} 6. Qe2 {[%clk 0:02:55.1]} 6... Nc6 {[%clk 0:02:54.6]}
7. Ngf3 {[%clk 0:02:49.7]} 7... O-O {[%clk 0:02:44.2]} 8. Nb3 {[%clk 0:02:48.2]}
8... dxe4 {[%clk 0:02:41]} 9. Nxc5 {[%clk 0:02:38.1]} 9... exf3 {[%clk
0:02:40.4]} 10. Qe3 {[%clk 0:02:22.7]} 10... fxg2 {[%clk 0:02:23]} 11. Rg1
{[%clk 0:02:21.9]} 11... Nd4 {[%clk 0:01:49.9]} 12. Bd2 {[%clk 0:02:14.2]} 12...
Qd5 {[%clk 0:01:47.9]} 13. Ne4 {[%clk 0:02:06.4]} 13... Ng4 {[%clk 0:01:35.2]}
14. Qh3 {[%clk 0:01:56.5]} 14... f5 {[%clk 0:01:30]} 15. c4 {[%clk 0:01:13.8]}
15... fxe4 {[%clk 0:00:58.3]} 16. cxd5 {[%clk 0:01:09.5]} 16... Nf3+ {[%clk
0:00:58.5]} 17. Ke2 {[%clk 0:01:01.9]} 17... exd3+ {[%clk 0:00:57]} 18. Kxd3
{[%clk 0:00:54.1]} 18... Nxf2+ {[%clk 0:00:56.4]} 19. Ke3 {[%clk 0:00:53.5]}
19... Nxh3 {[%clk 0:00:53.5]} 20. Rxg2 {[%clk 0:00:54]} 20... Nxd2 {[%clk
0:00:53.9]} 21. Rxd2 {[%clk 0:00:46.1]} 21... exd5 {[%clk 0:00:53]} 22. Rxd5
{[%clk 0:00:45.8]} 22... Bg4 {[%clk 0:00:52.5]} 23. Rc1 {[%clk 0:00:43]} 23...
Rad8 {[%clk 0:00:52.3]} 24. Rb5 {[%clk 0:00:40]} 24... Rfe8+ {[%clk 0:00:51.5]}
25. Re5 {[%clk 0:00:39.6]} 25... Rxe5# {[%clk 0:00:50.2]} 0-1

[Event "Late-Titled-Tuesday-Blitz-April-02-2024"]
[Site "Chess.com"]
[Date "2024.04.02"]
[Round "10"]
[White "elcala"]
[Black "protectiago"]
[Result "1-0"]
[WhiteElo "1846"]
[BlackElo "2046"]
[TimeControl "180+1"]
[EndTime "15:51:42 PDT"]
[Termination "elcala won by resignation"]

1. d4 {[%clk 0:03:00.9]} 1... Nf6 {[%clk 0:02:56.8]} 2. Nf3 {[%clk 0:03:01.5]}
2... g6 {[%clk 0:02:54.9]} 3. Bf4 {[%clk 0:03:00.9]} 3... Bg7 {[%clk 0:02:54.6]}
4. c3 {[%clk 0:03:00.7]} 4... O-O {[%clk 0:02:54.4]} 5. Qc1 {[%clk 0:03:01.2]}
5... c5 {[%clk 0:02:53.7]} 6. Bh6 {[%clk 0:02:59.5]} 6... cxd4 {[%clk
0:02:52.2]} 7. cxd4 {[%clk 0:02:58.1]} 7... Nc6 {[%clk 0:02:33.1]} 8. Bxg7
{[%clk 0:02:56.5]} 8... Kxg7 {[%clk 0:02:34]} 9. Nc3 {[%clk 0:02:51.3]} 9... d5
{[%clk 0:02:32.5]} 10. a3 {[%clk 0:02:46.2]} 10... Bf5 {[%clk 0:02:25.9]} 11. e3
{[%clk 0:02:45.3]} 11... Rc8 {[%clk 0:02:23.6]} 12. Qd2 {[%clk 0:02:43.7]} 12...
Na5 {[%clk 0:02:20.8]} 13. Qd1 {[%clk 0:02:19.9]} 13... a6 {[%clk 0:01:57.6]}
14. Be2 {[%clk 0:02:18.6]} 14... b5 {[%clk 0:01:43.1]} 15. O-O {[%clk 0:02:17]}
15... Nc4 {[%clk 0:01:38.8]} 16. Bxc4 {[%clk 0:02:12.2]} 16... Rxc4 {[%clk
0:01:35.2]} 17. Nh4 {[%clk 0:02:07.6]} 17... Bc8 {[%clk 0:01:23.7]} 18. f4
{[%clk 0:02:04.3]} 18... Qb6 {[%clk 0:01:07.7]} 19. Nf3 {[%clk 0:02:01]} 19...
Bg4 {[%clk 0:00:58.1]} 20. h3 {[%clk 0:01:57.8]} 20... Bxf3 {[%clk 0:00:57.8]}
21. Qxf3 {[%clk 0:01:47.8]} 21... e6 {[%clk 0:00:53.1]} 22. g4 {[%clk
0:01:37.5]} 22... Rfc8 {[%clk 0:00:46.8]} 23. g5 {[%clk 0:01:36.6]} 23... Ne4
{[%clk 0:00:21.5]} 24. Nxe4 {[%clk 0:01:35.2]} 24... dxe4 {[%clk 0:00:22.4]} 25.
Qxe4 {[%clk 0:01:33.5]} 25... Rc2 {[%clk 0:00:22]} 26. Rf2 {[%clk 0:01:25.2]}
26... b4 {[%clk 0:00:15]} 27. Rxc2 {[%clk 0:01:20.8]} 1-0

[Event "Late-Titled-Tuesday-Blitz-April-02-2024"]
[Site "Chess.com"]
[Date "2024.04.02"]
[Round "10"]
[White "yaguigor"]
[Black "Inepton_Fermion"]
[Result "1-0"]
[WhiteElo "2613"]
[BlackElo "2475"]
[TimeControl "180+1"]
[EndTime "15:52:03 PDT"]
[Termination "yaguigor won by resignation"]

1. Nf3 {[%clk 0:03:00.9]} 1... d5 {[%clk 0:02:59.7]} 2. d4 {[%clk 0:02:59.9]}
2... Nf6 {[%clk 0:03:00.3]} 3. c4 {[%clk 0:02:59.6]} 3... dxc4 {[%clk
0:02:57.8]} 4. e3 {[%clk 0:02:59.1]} 4... Bg4 {[%clk 0:02:56.5]} 5. Bxc4 {[%clk
0:02:58.9]} 5... e6 {[%clk 0:02:57]} 6. Qb3 {[%clk 0:02:58]} 6... Bxf3 {[%clk
0:02:55]} 7. gxf3 {[%clk 0:02:57.8]} 7... Nbd7 {[%clk 0:02:55.7]} 8. Qxb7 {[%clk
0:02:56.3]} 8... c5 {[%clk 0:02:56.1]} 9. dxc5 {[%clk 0:02:49.3]} 9... Bxc5
{[%clk 0:02:52.3]} 10. Nc3 {[%clk 0:02:45.1]} 10... O-O {[%clk 0:02:42.2]} 11.
f4 {[%clk 0:02:43.2]} 11... e5 {[%clk 0:01:49.2]} 12. f5 {[%clk 0:02:40.9]}
12... Rb8 {[%clk 0:01:39.5]} 13. Qg2 {[%clk 0:02:39.2]} 13... Nb6 {[%clk
0:01:28.9]} 14. Rg1 {[%clk 0:02:29.7]} 14... Ne8 {[%clk 0:01:25.5]} 15. Be2
{[%clk 0:02:26.2]} 15... Bb4 {[%clk 0:01:18.3]} 16. Bd2 {[%clk 0:02:25]} 16...
f6 {[%clk 0:01:05.1]} 17. Bb5 {[%clk 0:02:15.9]} 17... Rf7 {[%clk 0:00:55.1]}
18. O-O-O {[%clk 0:02:11.6]} 18... Qc7 {[%clk 0:00:50.6]} 19. Qc6 {[%clk
0:02:07.3]} 19... Qxc6 {[%clk 0:00:39.7]} 20. Bxc6 {[%clk 0:02:06.7]} 20... Rc7
{[%clk 0:00:39.6]} 21. Bxe8 {[%clk 0:02:01.3]} 21... Rxe8 {[%clk 0:00:39.5]} 22.
Kb1 {[%clk 0:02:01.9]} 22... Bxc3 {[%clk 0:00:31]} 23. Bxc3 {[%clk 0:02:00.8]}
23... Na4 {[%clk 0:00:26.1]} 24. Rc1 {[%clk 0:01:42.4]} 24... Kf7 {[%clk
0:00:20.2]} 25. Rg4 {[%clk 0:01:40.2]} 25... Nb6 {[%clk 0:00:16]} 26. Ba5 {[%clk
0:01:35.8]} 26... Rxc1+ {[%clk 0:00:15.4]} 27. Kxc1 {[%clk 0:01:36.7]} 27... Nd5
{[%clk 0:00:15.5]} 28. Rc4 {[%clk 0:01:34.5]} 28... Rb8 {[%clk 0:00:14.6]} 29.
e4 {[%clk 0:01:31]} 29... Ne7 {[%clk 0:00:13.4]} 30. Rc7 {[%clk 0:01:30.2]}
30... g6 {[%clk 0:00:11.7]} 31. a3 {[%clk 0:01:23.4]} 31... gxf5 {[%clk
0:00:11.4]} 32. Bb4 {[%clk 0:01:22.6]} 32... Re8 {[%clk 0:00:10.6]} 33. exf5
{[%clk 0:01:22]} 1-0

[Event "Late-Titled-Tuesday-Blitz-April-02-2024"]
[Site "Chess.com"]
[Date "2024.04.02"]
[Round "10"]
[White "HajiyevKanan"]
[Black "1g60-1"]
[Result "1-0"]
[WhiteElo "2592"]
[BlackElo "2398"]
[TimeControl "180+1"]
[EndTime "15:52:17 PDT"]
[Termination "HajiyevKanan won by resignation"]

1. d4 {[%clk 0:03:00.9]} 1... e6 {[%clk 0:02:59.6]} 2. Nf3 {[%clk 0:03:01.8]}
2... f5 {[%clk 0:02:59.5]} 3. c4 {[%clk 0:03:02.7]} 3... Nf6 {[%clk 0:02:59]} 4.
g3 {[%clk 0:03:03.6]} 4... Be7 {[%clk 0:02:59.2]} 5. Bg2 {[%clk 0:03:04.5]} 5...
O-O {[%clk 0:02:59.6]} 6. O-O {[%clk 0:03:05.4]} 6... d6 {[%clk 0:03:00]} 7. b3
{[%clk 0:03:06.1]} 7... a5 {[%clk 0:02:59.1]} 8. Bb2 {[%clk 0:03:06.6]} 8... a4
{[%clk 0:02:58.7]} 9. Qc2 {[%clk 0:03:06.9]} 9... Ne4 {[%clk 0:02:54.6]} 10.
Nbd2 {[%clk 0:03:07.1]} 10... a3 {[%clk 0:02:52.2]} 11. Bc3 {[%clk 0:03:06.1]}
11... Nxc3 {[%clk 0:02:51.7]} 12. Qxc3 {[%clk 0:03:07]} 12... f4 {[%clk
0:02:40.1]} 13. e4 {[%clk 0:03:03.8]} 13... fxe3 {[%clk 0:02:39.1]} 14. fxe3
{[%clk 0:03:03]} 14... Nc6 {[%clk 0:02:36.1]} 15. Rac1 {[%clk 0:02:51.9]} 15...
Bd7 {[%clk 0:02:35]} 16. b4 {[%clk 0:02:45.9]} 16... Bf6 {[%clk 0:02:24]} 17. b5
{[%clk 0:02:43.7]} 17... Ne7 {[%clk 0:02:23.7]} 18. Ne4 {[%clk 0:02:43.3]} 18...
Nf5 {[%clk 0:02:14.3]} 19. Nxf6+ {[%clk 0:02:31.6]} 19... Rxf6 {[%clk
0:02:15.2]} 20. Qd3 {[%clk 0:02:32.2]} 20... Qe7 {[%clk 0:01:38.5]} 21. Rc3
{[%clk 0:02:27]} 21... e5 {[%clk 0:01:33.4]} 22. dxe5 {[%clk 0:02:19]} 22...
dxe5 {[%clk 0:01:28.7]} 23. Qd5+ {[%clk 0:02:19.2]} 23... Rf7 {[%clk 0:01:20.3]}
24. Nxe5 {[%clk 0:02:12]} 24... Be6 {[%clk 0:01:18.7]} 25. Qxb7 {[%clk
0:02:08.9]} 25... Raf8 {[%clk 0:01:07.8]} 26. Nxf7 {[%clk 0:02:09]} 26... Rxf7
{[%clk 0:01:07.2]} 27. Bd5 {[%clk 0:02:03.8]} 27... h5 {[%clk 0:01:00.5]} 28.
Qa8+ {[%clk 0:01:38.3]} 28... Rf8 {[%clk 0:00:57]} 29. Qxa3 {[%clk 0:01:38.8]}
29... Qf6 {[%clk 0:00:45.8]} 30. Bxe6+ {[%clk 0:01:20]} 30... Qxe6 {[%clk
0:00:45.9]} 31. Qc5 {[%clk 0:01:13.6]} 31... Rf7 {[%clk 0:00:28.9]} 32. Qd5
{[%clk 0:01:09]} 32... Qg6 {[%clk 0:00:23.1]} 33. e4 {[%clk 0:01:01.1]} 33...
Nd6 {[%clk 0:00:23.3]} 34. Rxf7 {[%clk 0:00:56.6]} 34... Nxf7 {[%clk 0:00:24.2]}
35. Rf3 {[%clk 0:00:55]} 35... Qb6+ {[%clk 0:00:24.4]} 36. c5 {[%clk 0:00:53.4]}
36... Qg6 {[%clk 0:00:24]} 1-0

[Event "Late-Titled-Tuesday-Blitz-April-02-2024"]
[Site "Chess.com"]
[Date "2024.04.02"]
[Round "10"]
[White "Sanan_Sjugirov"]
[Black "bascheyaro"]
[Result "0-1"]
[WhiteElo "2949"]
[BlackElo "2839"]
[TimeControl "180+1"]
[EndTime "15:52:23 PDT"]
[Termination "bascheyaro won by resignation"]

1. d4 {[%clk 0:03:00.9]} 1... d5 {[%clk 0:02:59.9]} 2. c4 {[%clk 0:03:01.4]}
2... c6 {[%clk 0:03:00.4]} 3. Nf3 {[%clk 0:03:01.5]} 3... Nf6 {[%clk 0:03:00.9]}
4. Nc3 {[%clk 0:03:01.9]} 4... a6 {[%clk 0:03:01.1]} 5. c5 {[%clk 0:03:00.4]}
5... Bf5 {[%clk 0:03:01.2]} 6. Bf4 {[%clk 0:02:57.3]} 6... Nbd7 {[%clk
0:03:01.1]} 7. e3 {[%clk 0:02:55.9]} 7... e6 {[%clk 0:03:01]} 8. h3 {[%clk
0:02:55.1]} 8... Be7 {[%clk 0:03:00.8]} 9. Bd3 {[%clk 0:02:51]} 9... Bxd3 {[%clk
0:02:57]} 10. Qxd3 {[%clk 0:02:51.9]} 10... O-O {[%clk 0:02:57.4]} 11. O-O
{[%clk 0:02:52.3]} 11... Re8 {[%clk 0:02:57.9]} 12. b4 {[%clk 0:02:51.9]} 12...
b5 {[%clk 0:02:51.2]} 13. a4 {[%clk 0:02:51]} 13... Qc8 {[%clk 0:02:46.9]} 14.
Ne5 {[%clk 0:02:41.7]} 14... Nxe5 {[%clk 0:02:44.4]} 15. Bxe5 {[%clk 0:02:42.6]}
15... Nd7 {[%clk 0:02:39.5]} 16. Bg3 {[%clk 0:02:42.5]} 16... Bf6 {[%clk
0:02:37.2]} 17. f4 {[%clk 0:02:40.9]} 17... Qb7 {[%clk 0:02:32.1]} 18. a5 {[%clk
0:02:38]} 18... g6 {[%clk 0:02:30.5]} 19. Bh2 {[%clk 0:02:37.4]} 19... Bg7
{[%clk 0:02:30.1]} 20. g4 {[%clk 0:02:38]} 20... f5 {[%clk 0:02:30.4]} 21. Bg3
{[%clk 0:02:37.4]} 21... Nf6 {[%clk 0:02:30.4]} 22. Bh4 {[%clk 0:02:37.3]} 22...
Ne4 {[%clk 0:02:30.8]} 23. Nxe4 {[%clk 0:02:36.5]} 23... dxe4 {[%clk 0:02:30.3]}
24. Qe2 {[%clk 0:02:34.7]} 24... Qd7 {[%clk 0:02:29.7]} 25. Rf2 {[%clk
0:02:35.2]} 25... Qd5 {[%clk 0:02:28.1]} 26. Rg2 {[%clk 0:02:35.8]} 26... Kf7
{[%clk 0:02:28]} 27. Kh2 {[%clk 0:02:35.4]} 27... Rg8 {[%clk 0:02:26.7]} 28.
Rag1 {[%clk 0:02:36]} 28... Rab8 {[%clk 0:02:21.9]} 29. Bg5 {[%clk 0:02:34.9]}
29... Qc4 {[%clk 0:02:17.1]} 30. Qe1 {[%clk 0:02:34.1]} 30... Rbf8 {[%clk
0:01:56.1]} 31. Qh4 {[%clk 0:01:30.7]} 31... h6 {[%clk 0:01:55.3]} 32. Be7
{[%clk 0:01:30.9]} 32... Re8 {[%clk 0:01:55.2]} 33. Bd6 {[%clk 0:01:26.7]} 33...
Bf6 {[%clk 0:01:54.1]} 34. Qe1 {[%clk 0:01:13.2]} 34... h5 {[%clk 0:01:50.1]}
35. gxh5 {[%clk 0:01:05.5]} 35... gxh5 {[%clk 0:01:50.5]} 36. Qd1 {[%clk
0:01:04.8]} 36... Rxg2+ {[%clk 0:01:49.9]} 37. Rxg2 {[%clk 0:01:05.4]} 37... Rh8
{[%clk 0:01:50.2]} 38. Be5 {[%clk 0:01:03.7]} 38... Qd3 {[%clk 0:01:02.2]} 39.
Qxd3 {[%clk 0:01:02.8]} 39... exd3 {[%clk 0:01:02.5]} 40. Bxf6 {[%clk
0:01:03.4]} 40... Kxf6 {[%clk 0:01:03.1]} 41. Kg1 {[%clk 0:01:04]} 41... Rg8
{[%clk 0:01:00]} 0-1

[Event "Late-Titled-Tuesday-Blitz-April-02-2024"]
[Site "Chess.com"]
[Date "2024.04.02"]
[Round "10"]
[White "ATM622"]
[Black "Zq1"]
[Result "1/2-1/2"]
[WhiteElo "2524"]
[BlackElo "2618"]
[TimeControl "180+1"]
[EndTime "15:52:33 PDT"]
[Termination "Game drawn by agreement"]

1. d4 {[%clk 0:03:00.9]} 1... Nf6 {[%clk 0:02:57.5]} 2. c4 {[%clk 0:03:00.8]}
2... a6 {[%clk 0:02:54.8]} 3. g3 {[%clk 0:02:58.9]} 3... c5 {[%clk 0:02:54.7]}
4. d5 {[%clk 0:02:58.9]} 4... b5 {[%clk 0:02:54.1]} 5. Nd2 {[%clk 0:02:55.1]}
5... d6 {[%clk 0:02:53.8]} 6. Bg2 {[%clk 0:02:54.7]} 6... g6 {[%clk 0:02:54]} 7.
Ngf3 {[%clk 0:02:54.4]} 7... Bg7 {[%clk 0:02:54.1]} 8. O-O {[%clk 0:02:54.4]}
8... O-O {[%clk 0:02:53.9]} 9. e4 {[%clk 0:02:54.1]} 9... Ra7 {[%clk 0:02:46.1]}
10. Re1 {[%clk 0:02:51.5]} 10... e6 {[%clk 0:02:45.3]} 11. a4 {[%clk 0:02:47.4]}
11... exd5 {[%clk 0:02:35.5]} 12. axb5 {[%clk 0:02:44.1]} 12... d4 {[%clk
0:02:27.6]} 13. e5 {[%clk 0:02:41.4]} 13... Ne8 {[%clk 0:02:13.9]} 14. Ne4
{[%clk 0:02:36.8]} 14... Qb6 {[%clk 0:02:08]} 15. exd6 {[%clk 0:02:26.2]} 15...
axb5 {[%clk 0:01:52]} 16. Rxa7 {[%clk 0:02:22.8]} 16... Qxa7 {[%clk 0:01:51.2]}
17. cxb5 {[%clk 0:02:23.3]} 17... Bf5 {[%clk 0:01:45.9]} 18. Neg5 {[%clk
0:02:17]} 18... Nxd6 {[%clk 0:01:40.4]} 19. Nh4 {[%clk 0:02:13.1]} 19... h6
{[%clk 0:01:33]} 20. Nxf5 {[%clk 0:02:11.4]} 20... Nxf5 {[%clk 0:01:32.3]} 21.
Ne4 {[%clk 0:02:11.4]} 21... Qb6 {[%clk 0:01:28.6]} 22. Bf1 {[%clk 0:02:09.1]}
22... Nd7 {[%clk 0:01:24.8]} 23. Bf4 {[%clk 0:02:06.2]} 23... Ne5 {[%clk
0:01:23.9]} 24. Bxe5 {[%clk 0:02:01.7]} 24... Bxe5 {[%clk 0:01:22.7]} 25. Bc4
{[%clk 0:02:02.3]} 25... Nd6 {[%clk 0:01:16.1]} 26. Nxd6 {[%clk 0:02:00]} 26...
Qxd6 {[%clk 0:01:13.6]} 27. f4 {[%clk 0:01:53.8]} 27... Bf6 {[%clk 0:01:12.4]}
28. Qd3 {[%clk 0:01:52.3]} 28... Kg7 {[%clk 0:01:12.1]} 29. f5 {[%clk
0:01:48.8]} 29... g5 {[%clk 0:01:11.3]} 30. Qe4 {[%clk 0:01:42.7]} 30... Rd8
{[%clk 0:01:06.7]} 31. Qd3 {[%clk 0:01:40]} 31... Rd7 {[%clk 0:01:04.7]} 32. Re8
{[%clk 0:01:38]} 32... Re7 {[%clk 0:01:02.7]} 33. Rxe7 {[%clk 0:01:36.7]} 33...
Bxe7 {[%clk 0:01:02.5]} 34. Qe4 {[%clk 0:01:34.4]} 34... Bf6 {[%clk 0:01:02.1]}
35. Kg2 {[%clk 0:01:32.2]} 35... h5 {[%clk 0:01:00.9]} 36. Qb7 {[%clk
0:01:28.4]} 36... Be7 {[%clk 0:00:50.7]} 37. b6 {[%clk 0:01:21.1]} 37... Kf6
{[%clk 0:00:32.6]} 38. Qc7 {[%clk 0:01:17]} 38... Qe5 {[%clk 0:00:32.2]} 39.
Qxe5+ {[%clk 0:01:13]} 39... Kxe5 {[%clk 0:00:31.8]} 40. b7 {[%clk 0:01:13.5]}
40... Bd6 {[%clk 0:00:30.5]} 41. Bxf7 {[%clk 0:01:13.9]} 41... h4 {[%clk
0:00:30.5]} 42. gxh4 {[%clk 0:01:10.3]} 42... gxh4 {[%clk 0:00:30.4]} 43. Kf3
{[%clk 0:01:05.9]} 43... Kxf5 {[%clk 0:00:28.6]} 44. h3 {[%clk 0:01:06.2]} 44...
Kf6 {[%clk 0:00:28.2]} 45. Bc4 {[%clk 0:01:03.6]} 45... Ke5 {[%clk 0:00:27.8]}
46. b3 {[%clk 0:01:02.3]} 46... Bb8 {[%clk 0:00:26.5]} 47. Bd3 {[%clk 0:00:59]}
1/2-1/2

[Event "Late-Titled-Tuesday-Blitz-April-02-2024"]
[Site "Chess.com"]
[Date "2024.04.02"]
[Round "10"]
[White "WilsonPalencia21"]
[Black "Mops_2004"]
[Result "0-1"]
[WhiteElo "2607"]
[BlackElo "2802"]
[TimeControl "180+1"]
[EndTime "15:52:37 PDT"]
[Termination "Mops_2004 won by resignation"]

1. d4 {[%clk 0:03:00.9]} 1... g6 {[%clk 0:02:59.8]} 2. c4 {[%clk 0:03:00.5]}
2... Bg7 {[%clk 0:03:00]} 3. Nf3 {[%clk 0:03:01.1]} 3... d6 {[%clk 0:03:00.6]}
4. Nc3 {[%clk 0:03:00.9]} 4... e5 {[%clk 0:03:00.1]} 5. d5 {[%clk 0:02:59.1]}
5... a5 {[%clk 0:02:59.5]} 6. e4 {[%clk 0:02:59.1]} 6... Na6 {[%clk 0:02:59.2]}
7. h3 {[%clk 0:02:59.5]} 7... Nc5 {[%clk 0:02:57.2]} 8. Bd3 {[%clk 0:02:56]}
8... Nxd3+ {[%clk 0:02:44]} 9. Qxd3 {[%clk 0:02:54]} 9... f5 {[%clk 0:02:41]}
10. Bg5 {[%clk 0:02:51.6]} 10... Nf6 {[%clk 0:02:39.9]} 11. O-O-O {[%clk
0:02:38.1]} 11... O-O {[%clk 0:02:33.8]} 12. Nd2 {[%clk 0:02:36]} 12... h6
{[%clk 0:02:28]} 13. Bxf6 {[%clk 0:02:33.9]} 13... Qxf6 {[%clk 0:02:27.8]} 14.
Kb1 {[%clk 0:02:33.2]} 14... Bd7 {[%clk 0:02:21.2]} 15. f3 {[%clk 0:02:31.9]}
15... a4 {[%clk 0:02:13.3]} 16. g4 {[%clk 0:02:30.3]} 16... fxg4 {[%clk
0:02:08.5]} 17. hxg4 {[%clk 0:02:28.4]} 17... Rf7 {[%clk 0:01:59.1]} 18. Qe3
{[%clk 0:02:19]} 18... Qf4 {[%clk 0:01:48.7]} 19. Qxf4 {[%clk 0:02:16]} 19...
Rxf4 {[%clk 0:01:41.3]} 20. Ne2 {[%clk 0:02:15.4]} 20... Rf7 {[%clk 0:01:40.3]}
21. Rc1 {[%clk 0:02:10.4]} 21... Bf8 {[%clk 0:01:35.9]} 22. Rc3 {[%clk
0:01:41.5]} 22... Kg7 {[%clk 0:01:33]} 23. Nc1 {[%clk 0:01:27.9]} 23... b6
{[%clk 0:01:24.2]} 24. Nd3 {[%clk 0:01:21.4]} 24... Be7 {[%clk 0:01:23.1]} 25.
Ne1 {[%clk 0:01:15.4]} 25... Rh8 {[%clk 0:01:17.3]} 26. Nf1 {[%clk 0:01:13.3]}
26... h5 {[%clk 0:01:10.5]} 27. gxh5 {[%clk 0:01:12.7]} 27... Rxh5 {[%clk
0:01:11.1]} 28. Rg1 {[%clk 0:01:02.3]} 28... Rh3 {[%clk 0:01:09.3]} 29. Rc2
{[%clk 0:00:38.9]} 29... Bh4 {[%clk 0:01:02.9]} 30. Nd2 {[%clk 0:00:36.9]} 30...
Rh2 {[%clk 0:00:52.5]} 31. Kc1 {[%clk 0:00:20.6]} 31... Bf2 {[%clk 0:00:50.4]}
32. Rg2 {[%clk 0:00:17.7]} 32... Rh1 {[%clk 0:00:46]} 33. Nf1 {[%clk 0:00:12.9]}
33... Bxe1 {[%clk 0:00:46]} 34. Ne3 {[%clk 0:00:10.1]} 0-1

[Event "Late-Titled-Tuesday-Blitz-April-02-2024"]
[Site "Chess.com"]
[Date "2024.04.02"]
[Round "10"]
[White "Hamisandwich"]
[Black "flawian2008"]
[Result "1-0"]
[WhiteElo "2724"]
[BlackElo "2559"]
[TimeControl "180+1"]
[EndTime "15:52:37 PDT"]
[Termination "Hamisandwich won by resignation"]

1. e4 {[%clk 0:02:59.9]} 1... c5 {[%clk 0:03:00.2]} 2. Nc3 {[%clk 0:02:55.7]}
2... Nc6 {[%clk 0:02:58.1]} 3. Bb5 {[%clk 0:02:55]} 3... Nd4 {[%clk 0:02:58.3]}
4. Nf3 {[%clk 0:02:53.2]} 4... e6 {[%clk 0:02:54.2]} 5. O-O {[%clk 0:02:52.3]}
5... a6 {[%clk 0:02:54.3]} 6. Bd3 {[%clk 0:02:48.4]} 6... Nc6 {[%clk 0:02:54.8]}
7. b3 {[%clk 0:02:47.6]} 7... Nf6 {[%clk 0:02:54.7]} 8. Bb2 {[%clk 0:02:47.8]}
8... d6 {[%clk 0:02:52.6]} 9. Be2 {[%clk 0:02:36.1]} 9... Be7 {[%clk 0:02:51.8]}
10. d4 {[%clk 0:02:35.4]} 10... cxd4 {[%clk 0:02:52.7]} 11. Nxd4 {[%clk
0:02:36.3]} 11... O-O {[%clk 0:02:52.4]} 12. Qd2 {[%clk 0:02:29.8]} 12... Bd7
{[%clk 0:02:49.5]} 13. Rad1 {[%clk 0:02:23.2]} 13... Rc8 {[%clk 0:02:49]} 14.
Nxc6 {[%clk 0:02:18.6]} 14... Bxc6 {[%clk 0:02:49.9]} 15. Bf3 {[%clk 0:02:16.3]}
15... Qc7 {[%clk 0:02:43.7]} 16. a4 {[%clk 0:02:10.1]} 16... Rfd8 {[%clk
0:02:43.2]} 17. Qf4 {[%clk 0:02:04.4]} 17... b5 {[%clk 0:02:42.2]} 18. axb5
{[%clk 0:02:03.6]} 18... axb5 {[%clk 0:02:43.1]} 19. Rd2 {[%clk 0:01:57.6]}
19... b4 {[%clk 0:02:42.2]} 20. Ne2 {[%clk 0:01:53.8]} 20... d5 {[%clk
0:02:34.2]} 21. e5 {[%clk 0:01:47]} 21... Ne4 {[%clk 0:02:32]} 22. Bxe4 {[%clk
0:01:47.4]} 22... dxe4 {[%clk 0:02:32.9]} 23. Rfd1 {[%clk 0:01:43.6]} 23... Bd5
{[%clk 0:02:30.1]} 24. Ng3 {[%clk 0:01:28.2]} 24... f5 {[%clk 0:02:17.6]} 25. h4
{[%clk 0:01:04.3]} 25... Qa7 {[%clk 0:02:07.5]} 26. Nxf5 {[%clk 0:01:01.2]}
26... Bc5 {[%clk 0:01:29.1]} 27. Nd4 {[%clk 0:00:49.3]} 27... Rf8 {[%clk
0:01:28.5]} 28. Qg3 {[%clk 0:00:49.5]} 28... Qa2 {[%clk 0:01:23.1]} 29. Ba1
{[%clk 0:00:43.7]} 29... Rf7 {[%clk 0:01:18.3]} 30. Qg4 {[%clk 0:00:39.6]} 30...
Rcf8 {[%clk 0:01:17.2]} 31. Nxe6 {[%clk 0:00:38]} 31... Bxf2+ {[%clk 0:01:14.1]}
32. Rxf2 {[%clk 0:00:31]} 32... e3 {[%clk 0:01:01.4]} 33. Rxf7 {[%clk
0:00:30.7]} 33... Rxf7 {[%clk 0:01:02.3]} 34. Nf4 {[%clk 0:00:25.7]} 34... Qxc2
{[%clk 0:00:51.9]} 35. Rxd5 {[%clk 0:00:25.2]} 35... Qf2+ {[%clk 0:00:50.8]} 36.
Kh2 {[%clk 0:00:23.5]} 36... Rxf4 {[%clk 0:00:46.4]} 37. Qe6+ {[%clk 0:00:23.4]}
1-0

[Event "Late-Titled-Tuesday-Blitz-April-02-2024"]
[Site "Chess.com"]
[Date "2024.04.02"]
[Round "10"]
[White "TanitoluwaAps116"]
[Black "ozates"]
[Result "1-0"]
[WhiteElo "2796"]
[BlackElo "2583"]
[TimeControl "180+1"]
[EndTime "15:52:38 PDT"]
[Termination "TanitoluwaAps116 won by resignation"]

1. e4 {[%clk 0:02:56.4]} 1... e5 {[%clk 0:02:58.2]} 2. Nf3 {[%clk 0:02:56.1]}
2... Nc6 {[%clk 0:02:58.9]} 3. Bc4 {[%clk 0:02:56.6]} 3... Nf6 {[%clk
0:02:57.7]} 4. d3 {[%clk 0:02:56.6]} 4... Be7 {[%clk 0:02:57.4]} 5. c3 {[%clk
0:02:54]} 5... O-O {[%clk 0:02:54.9]} 6. Bg5 {[%clk 0:02:51]} 6... d6 {[%clk
0:02:53.2]} 7. O-O {[%clk 0:02:49.8]} 7... h6 {[%clk 0:02:47.6]} 8. Be3 {[%clk
0:02:49.9]} 8... d5 {[%clk 0:02:44.6]} 9. exd5 {[%clk 0:02:45.3]} 9... Nxd5
{[%clk 0:02:45.5]} 10. Qe2 {[%clk 0:02:41.7]} 10... Bg4 {[%clk 0:02:44.8]} 11.
h3 {[%clk 0:02:38]} 11... Bh5 {[%clk 0:02:45.1]} 12. Nbd2 {[%clk 0:02:35.4]}
12... Kh8 {[%clk 0:02:42.7]} 13. d4 {[%clk 0:02:14.1]} 13... exd4 {[%clk
0:02:36.9]} 14. cxd4 {[%clk 0:02:15]} 14... f5 {[%clk 0:02:36.8]} 15. Nb3 {[%clk
0:02:01.3]} 15... Bf6 {[%clk 0:02:31.1]} 16. Rad1 {[%clk 0:01:57.6]} 16... Re8
{[%clk 0:02:28.1]} 17. Qd3 {[%clk 0:01:48.8]} 17... Bxf3 {[%clk 0:02:25.4]} 18.
gxf3 {[%clk 0:01:49.7]} 18... Bg5 {[%clk 0:01:31.1]} 19. Qxf5 {[%clk 0:01:11.1]}
19... Nxe3 {[%clk 0:01:23.1]} 20. fxe3 {[%clk 0:01:09.2]} 20... Bxe3+ {[%clk
0:01:16.4]} 21. Kh1 {[%clk 0:01:09.2]} 21... Rf8 {[%clk 0:01:17.1]} 22. Qe4
{[%clk 0:01:09]} 22... Bf4 {[%clk 0:00:38.1]} 23. Bd3 {[%clk 0:01:06.5]} 23...
g6 {[%clk 0:00:30.1]} 24. Qxg6 {[%clk 0:01:05.2]} 24... Qd7 {[%clk 0:00:30.6]}
25. Qh5 {[%clk 0:00:57.9]} 25... Rg8 {[%clk 0:00:25.8]} 26. Nc5 {[%clk
0:00:47.9]} 26... Qxd4 {[%clk 0:00:13.5]} 27. Qf5 {[%clk 0:00:44.7]} 27... Rg7
{[%clk 0:00:10]} 28. Ne6 {[%clk 0:00:42.2]} 28... Qe5 {[%clk 0:00:08.4]} 29.
Nxg7 {[%clk 0:00:40.4]} 29... Kxg7 {[%clk 0:00:06.9]} 30. Rg1+ {[%clk
0:00:39.9]} 30... Bg5 {[%clk 0:00:04]} 31. Qxe5+ {[%clk 0:00:38.3]} 1-0